{"text_format":"2","workbook":"xlsx","n_sheets":11,"sheets":["LÉEME","1 Información general","2 Situación suministro agua","3 Situación suministro energía","4 Producción agrícola","5 Tecnología bombeo agua","6 Tecnología de riego","7 Requisitos gestión","8 Evaluación financiera","9 Impactos ecológicos","10 Capacitación y aceptación"],"not_rendered":{"charts":0,"images":8,"macros":0,"external_links":1,"defined_names":68,"comments":0,"pivot_tables":0},"unopened":[],"bounds":{"document_bytes":16777216,"sheet_cells":100000,"run_cost":"one","rows_first":2000,"rows_last":500,"rows_between":2000,"halvings":0,"cell_chars":16384,"cell_head_chars":4096},"cells_cut":0,"cells_raw":0,"read":"whole","date_system":"1900"}

{"sheet":"LÉEME","index":0,"n_rows":111,"n_cols":7,"rows_kept":111,"cut":false,"hidden":false,"merged":[[91,3,101,9],[103,3,108,9],[34,3,35,5],[34,6,35,9],[10,3,10,9],[15,3,15,9],[17,3,17,9],[22,3,22,9],[31,3,31,9],[18,3,21,9],[69,5,70,9],[71,3,71,4],[71,5,71,7],[52,3,53,5],[52,6,53,9],[67,3,67,9],[54,3,58,5],[54,6,58,9],[78,3,89,9],[110,3,110,5],[47,6,49,9],[47,3,49,5],[72,3,72,4],[72,5,72,9],[73,3,75,4],[73,5,74,9],[75,5,75,7],[76,3,76,4],[76,5,76,7],[68,3,68,4],[68,5,68,6],[69,3,70,4],[36,3,40,5],[41,3,42,5],[41,6,42,9],[64,6,65,9],[64,3,65,5],[50,3,51,5],[50,6,51,9],[43,6,46,9],[43,3,46,5],[59,6,63,9],[59,3,63,5],[36,6,40,9]]}
{"$rows_empty":10}
[null,null,null,"Read Me Sheet"]
[]
[]
[]
[]
[null,null,null," DISEÑA – Herramienta de recogida de datos"]
[]
[null,null,null,"Introducción"]
[null,null,null,"Esta herramienta ayuda a la hora de recopilar in situ los datos necesarios para diseñar un SPIS y evaluar su viabilidad general. Es particularmente relevante para los módulos DISEÑA, MANTENIMIENTO y SALVAGUARDA EL AGUA de la caja de herramientas de SPIS. "]
[]
[]
[]
[null,null,null,"Consejos y trucos"]
{"$rows_empty":8}
[null,null,null,"Sinopsis"]
[null,null,null,"Esta herramienta incluye las siguientes hojas:"]
[]
[null,null,null,"1. Información general",null,null,"sobre datos básicos de la ubicación y meteorológicos del sitio "]
[]
[null,null,null,"2. Situación de suministro de agua",null,null,"para especificar la fuente de agua y la información relativa al acceso\nesta lista de verificación se complementa con una herramienta de lista de verificación en: SALVAGUARDA EL AGUA – Herramienta de gestión de los recursos hídricos\n"]
[]
[]
[]
[]
[null,null,null,"3. Situación de suministro de energía",null,null,"para especificar la fuente de energía y la información relativa al acceso "]
[]
[null,null,null,"4. Producción agrícola",null,null,"para especificar las condiciones del sitio y el tipo y extensión de la producción agrícola\nesta lista de verificación se complementa con una herramienta de cálculo en: RIEGA – Herramienta de suelos\n"]
[]
[]
[]
[null,null,null,"5. Tecnología de bombeo de agua",null,null,"esta lista de verificación se complementa con una herramienta de cálculo en: DISEÑA – Herramienta de cálculo del bombeo"]
[]
[]
[null,null,null,"6. Tecnología de riego",null,null,"para especificar el mecanismo de riego y fertirrigación "]
[]
[null,null,null,"7. Requisitos de gestión",null,null,"para especificar aspectos generales relacionados con la gestión "]
[]
[null,null,null,"8. Evaluación financiera",null,null,"esta lista de verificación se complementa con una herramienta de cálculo en: INVIERTE – Herramienta de cálculo de amortización e INVIERTE – Herramienta de cálculo del balance económico "]
[]
[]
[]
[]
[null,null,null,"9. Impactos ecológicos",null,null,"para especificar las observaciones relativas al impacto medioambiental\nesta lista de verificación se complementa con una herramienta de lista de verificación en: SALVAGUARDA EL AGUA – Herramienta de gestión de los recursos hídricos \n"]
[]
[]
[]
[]
[null,null,null,"10. Capacitación y aceptación",null,null,"para especificar el alcance de las medidas de capacitación y desarrollo de habilidades "]
[]
[]
[null,null,null,"Acerca de"]
[null,null,null,"Publicado por: ",null,"GIZ y FAO"]
[null,null,null,"Responsable:",null,"Proyecto de la GIZ Sustainable Energy for Food – Powering Agriculture"]
[]
[null,null,null,"Contacto: ",null,"Powering.Agriculture@giz.de"]
[null,null,null,"Enlace descarga: ",null,"https://energypedia.info/wiki/Toolbox_on_SPIS"]
[null,null,null,"Acerca de: ",null,"Powering Agriculture: An Energy Grand Challenge for Development. Disponible en:  "]
[]
[{"$nulls":5},"https://poweringag.org"]
[null,null,null,"Versión:",null," 1.1 (mayo de 2018)"]
[]
[null,null,null,"La publicación de la Caja de herramientas de sistemas de riego solar ha sido posible gracias al apoyo brindado por la iniciativa mundial Powering Agriculture: An Energy Grand Challenge for Development (PAEGC) (Energización Rural: Un gran desafío energético para el desarrollo). En 2012, la Agencia de los Estados Unidos para el Desarrollo Internacional (USAID), la Agencia Sueca de Cooperación Internacional para el Desarrollo (Sida), el Ministerio Federal de Cooperación Económica y Desarrollo (BMZ) de Alemania, la empresa de energía Duke Energy Corporation y la Corporación de Inversiones Privadas en el Extranjero (OPIC) juntaron recursos para crear la iniciativa PAEGC. El objetivo de PAEGC es fomentar nuevos enfoques sostenibles con el fin de acelerar el desarrollo y asegurar el establecimiento de energías limpias que incrementen la productividad y/o el valor de la agricultura en países en desarrollo y regiones emergentes sin acceso a fuentes de energía confiables, asequibles y limpias."]
{"$rows_empty":12}
[null,null,null,"Las denominaciones empleadas y la presentación del material en este producto informativo no implican juicio alguno por parte de la Deutsche Gesellschaft für Internationale Zusammenarbeit (GIZ) GmbH, la Organización de las Naciones Unidas para la Alimentación y la Agricultura (FAO), o los socios fundadores de la iniciativa PAEGC, sobre la condición jurídica o el grado de desarrollo de ninguno de los países, territorios, ciudades o zonas citados o de sus autoridades, ni respecto de la delimitación de sus fronteras o límites. La mención de empresas o productos de fabricantes en particular, estén o no patentados, no implica que la GIZ, la FAO o alguno de los socios fundadores de la iniciativa PAEGC los aprueben o recomienden, dándoles preferencia sobre otros de naturaleza similar que no se mencionan. Las opiniones expresadas en este producto informativo son las de su(s) autor(es) o autora(s), y no reflejan necesariamente los puntos de vista o las políticas de la GIZ, la FAO o ninguno de los socios fundadores de la iniciativa PAEGC."]
{"$rows_empty":11}
[null,null,null,"La GIZ, la FAO y los socios fundadores de la iniciativa PAEGC fomentan la utilización, la reproducción y la difusión del material presentado en este producto informativo. A menos que se indique lo contrario, el material puede ser copiado, descargado e impreso con fines de estudio privado, enseñanza e investigación científica, o para su utilización en productos o servicios no comerciales, siempre que se otorgue a la GIZ y la FAO el debido reconocimiento como fuentes y como titulares de los derechos de autor."]
[]
[]
[]
[]
[]
[]
[null,null,null,"© GIZ and FAO, 2018"]

{"sheet":"1 Información general","index":1,"n_rows":54,"n_cols":16,"rows_kept":54,"cut":false,"hidden":false,"merged":[[29,1,29,2],[7,14,7,15],[9,0,9,16],[11,1,11,15],[13,1,14,15],[16,1,17,15],[19,1,20,15],[23,1,23,15],[25,1,25,2],[25,4,25,15],[27,1,27,3],[27,4,27,15],[54,4,55,15],[32,1,32,15],[38,4,39,15],[40,4,41,15],[44,1,44,2],[45,1,45,2],[46,1,46,2],[47,1,47,2],[48,1,48,2],[49,1,49,2],[50,1,50,2],[52,4,53,15]]}
[]
[null,"DISEÑA – Herramienta de recogida de datos ",{"$nulls":10},"Datos GPX"]
[]
[null,"País",{"$nulls":8},"Propietario"]
[]
[null,"Granja",{"$nulls":8},"Entrevistador/a"]
[]
[null,"Distrito",{"$nulls":6},"Región",{"$nulls":4},"Fecha"]
[]
["1 INFORMACIÓN GENERAL"]
[]
[null,"1.1 Historia del sistema/explotación (propiedad, prácticas de riego previas, otros)"]
{"$rows_empty":11}
[null,"1.2 Posición geográfica"]
[]
[null,"Latitud [°]"]
[]
[null,"Longitud [°]"]
[]
[null,"Altitud [m]",{"$nulls":4},"m sobre el nivel del mar"]
[]
[]
[null,"1.3 Condiciones climatológicas"]
[]
[null,"Húmedo",{"$nulls":5},"Árido",{"$nulls":5},"Otros"]
[]
[null,"Semihúmedo",{"$nulls":5},"Semiárido"]
[]
[null,"Observación/"]
[null,"Notas"]
[]
[]
[]
[]
[null,null,null,"Unit","E","F","M","A","M","J","J","A","S","O","N","D"]
[null,"Insolación / hor.",null,"[kWh/m²d]"]
[null,"Temp. mín.",null,"[°C]"]
[null,"Temp. máx.",null,"[°C]"]
[null,"Temp. Media",null,"[°C]"]
[null,"Lluvias",null,"mm"]
[null,"ETo",null,"mm"]
[]
[null,"Observation/"]
[null,"Remarks"]

{"sheet":"2 Situación suministro agua","index":2,"n_rows":52,"n_cols":16,"rows_kept":52,"cut":false,"hidden":false,"merged":[[5,12,5,15],[3,12,3,15],[3,3,3,6],[5,3,5,6],[7,3,7,6],[46,1,46,15],[50,4,51,15],[52,4,53,15],[30,4,31,15],[32,1,34,3],[32,4,33,15],[36,1,36,15],[40,4,41,15],[42,4,43,15],[42,1,45,3],[23,1,23,15],[7,14,7,15],[9,0,9,16],[11,1,11,15],[17,4,18,15],[19,4,20,15],[7,10,7,11],[15,7,15,11]]}
[]
[null,"DISEÑA – Herramienta de recogida de datos",{"$nulls":10},"Datos GPX",null,{"$f":"'[1]1 Información general'!O2","v":0},{"$f":"'[1]1 Información general'!P2","v":0}]
[]
[null,"País",null,{"$f":"'[1]1 Información general'!D4","v":0},{"$nulls":6},"Propietario",null,{"$f":"'[1]1 Información general'!M4","v":0}]
[]
[null,"Granja",null,{"$f":"'[1]1 Información general'!D6","v":0},{"$nulls":6},"Entrevistador/a",null,{"$f":"'[1]1 Información general'!M6","v":0}]
[]
[null,"Distrito",null,{"$f":"'[1]1 Información general'!D8","v":0},{"$nulls":4},"Región",null,{"$f":"'[1]1 Información general'!K8","v":0},null,null,"Fecha",{"$f":"'[1]1 Información general'!O8:P8","v":0}]
[]
["2 SITUACIÓN DE SUMINISTRO DE AGUA"]
[]
[null,"2.1 Fuente de agua"]
[]
[null,"Pozo",null,null,null,"Estanque",null,null,null,"Lago",null,null,null,"Canal"]
[]
[null,"Diámetro",null,null,"m","Otros"]
[]
[null,"Observación/"]
[null,"Notas"]
[]
[]
[]
[]
[null,"2.2 Calidad del agua"]
[]
[null,"Normal",null,null,null,"Salobre",null,null,null,"Dura",null,null,null,"Otros"]
[{"$nulls":5},"(salada)",null,null,null,"(alto contenido de cal)"]
[null,"Salinidad",null,null,"μS",{"$nulls":4},"Temperatura",null,null,"°C"]
[]
[]
[null,"Observación/"]
[null,"Notas"]
[null,"(p. ej. minerales, bacterias, limo y arcilla especiales)"]
[]
[]
[]
[null,"2.3 Disponibilidad de agua"]
[]
[null,"Suficiente",null,null,null,"Estacional",null,null,null,"Escasa",null,null,null,"Otros"]
[]
[null,"Observación/"]
[null,"Notas"]
[null,"(p.ej. regulaciones/ asignaciones existentes)"]
[]
[]
[]
[null,"2.4 Propiedad del agua"]
[]
[null,"Privada",null,null,null,"Pública",null,null,null,"Asociación",null,null,null,"Otros"]
[]
[null,"Observación/"]
[null,"Notas"]

{"sheet":"3 Situación suministro energía","index":3,"n_rows":50,"n_cols":16,"rows_kept":50,"cut":false,"hidden":false,"merged":[[7,14,7,15],[11,1,11,15],[17,4,18,15],[19,4,20,15],[19,1,21,3],[9,0,9,15],[23,1,23,15],[47,4,48,15],[49,4,50,15],[13,14,13,15],[36,4,37,15],[43,4,43,5],[43,14,43,15],[41,4,41,15],[45,4,45,8],[45,14,45,15],[31,4,32,15],[29,4,30,15],[31,1,32,3],[49,1,50,3]]}
[]
[null,"DISEÑA – Herramienta de recogida de datos",{"$nulls":10},"Datos GPX",null,{"$f":"'[1]1 Información general'!O2","v":0},{"$f":"'[1]1 Información general'!P2","v":0}]
[]
[null,"País",null,{"$f":"'[1]1 Información general'!D4","v":0},{"$nulls":6},"Propietario",null,{"$f":"'[1]1 Información general'!M4","v":0}]
[]
[null,"Granja",null,{"$f":"'[1]1 Información general'!D6","v":0},{"$nulls":6},"Entrevistador/a",null,{"$f":"'[1]1 Información general'!M6","v":0}]
[]
[null,"Distrito",null,{"$f":"'[1]1 Información general'!D8","v":0},{"$nulls":4},"Región",null,{"$f":"'[1]1 Información general'!K8","v":0},null,null,"Fecha",{"$f":"'[1]1 Información general'!O8:P8","v":0}]
[]
["3 SITUACIÓN DE SUMINISTRO DE ENERGÍA"]
[]
[null,"3.1 Suministro de la red pública"]
[]
[null,"Conexión a la red",null,null,null,"Sí",null,null,"No",null,null,"Voltaje de red [V]"]
[]
[null,"Disponibilidad de red",null,null,null,"24/7",null,null,"horas/días"]
[]
[null,"Observación/"]
[null,"Notas"]
[null,"(p. ej. frecuencia de cortes, desconexión de carga, etc.)"]
[]
[]
[]
[null,"3.2 Suministro fuera de red"]
[]
[null,"Generador Diésel",{"$nulls":5},"Generador Gas",{"$nulls":4},"Generador PV"]
[]
[null,"Híbrido",{"$nulls":5},"Otros"]
[]
[null,"Observación/"]
[null,"Notas"]
[null,"(p. ej. tipo de generador)"]
[]
[]
[null,"Generador convencional"]
[]
[null,"Fabricante"]
[]
[]
[null,"Finalidad",null,null,"Sum. principal",{"$nulls":6},"Suministro de reserva"]
[]
[null,"Modelo"]
[]
[null,"Potencia nom. [kW]",{"$nulls":9},"Frecuencia [Hz]"]
[]
[null,"Tipo de combustible",{"$nulls":8},"Consumo combustible [l/d]"]
[]
[null,"Observación/"]
[null,"Notas"]
[null,"(p. ej. tipo de generador)"]

{"sheet":"4 Producción agrícola","index":4,"n_rows":120,"n_cols":16,"rows_kept":120,"cut":false,"hidden":false,"merged":[[3,9,3,10],[3,12,3,15],[5,12,5,15],[3,3,3,6],[5,3,5,6],[81,1,81,3],[82,1,82,3],[77,1,77,3],[78,1,78,3],[79,1,79,3],[80,1,80,3],[47,1,47,15],[29,4,30,15],[31,4,32,15],[76,1,76,3],[53,4,54,15],[55,4,56,15],[59,1,59,15],[61,6,61,7],[61,13,61,14],[74,1,74,15],[31,1,33,3],[23,1,23,15],[27,3,27,11],[35,1,35,15],[41,4,42,15],[43,4,44,15],[7,14,7,15],[9,0,9,16],[11,1,11,15],[17,4,18,15],[19,4,20,15],[7,10,7,12],[7,3,7,6],[85,1,85,15],[91,4,92,15],[93,4,94,15],[97,1,97,15],[117,1,117,3],[118,1,118,3],[119,1,119,3],[111,1,111,15],[113,1,113,3],[114,1,114,3],[115,1,115,3],[116,1,116,3]]}
[]
[null,"DISEÑA – Herramienta de recogida de datos",{"$nulls":10},"Datos GPX",null,{"$f":"'[1]1 Información general'!O2","v":0},{"$f":"'[1]1 Información general'!P2","v":0}]
[]
[null,"País",null,{"$f":"'[1]1 Información general'!D4","v":0},{"$nulls":5},"Propietario/a",null,null,{"$f":"'[1]1 Información general'!M4","v":0}]
[]
[null,"Granja",null,{"$f":"'[1]1 Información general'!D6","v":0},{"$nulls":5},"Entrevistador/a",null,null,{"$f":"'[1]1 Información general'!M6","v":0}]
[]
[null,"Distrito",null,{"$f":"'[1]1 Información general'!D8","v":0},{"$nulls":4},"Región",null,{"$f":"'[1]1 Información general'!K8","v":0},null,null,"Fecha",{"$f":"'[1]1 Información general'!O8:P8","v":0}]
[]
["4 PRODUCCIÓN AGRÍCOLA"]
[]
[null,"4.1 Terreno"]
[]
[null,"Llano",null,null,null,"Uadi",null,null,null,"Montañoso",null,null,null,"Valle"]
[{"$nulls":5},"(cauce seco de río)"]
[null,"Pendiente",null,null,"%",{"$nulls":8},"Otros"]
[]
[null,"Observación/"]
[null,"Notas"]
[]
[]
[]
[]
[null,"4.2 Tipo de suelo"]
[]
[null,"Arcilla",null,null,null,"Limo",null,null,null,"Arena",null,null,null,"Variaciones"]
[]
[null,"Tipo",{"$nulls":11},"Otros"]
[]
[null,"Observación/"]
[null,"Notas"]
[null,"(p. ej. capacidad de retención de agua)"]
[]
[]
[]
[null,"4.3 Salinidad del suelo"]
[]
[null,"Baja",null,null,null,"Media",null,null,null,"Alta",null,null,null,"Otra"]
[]
[null,"Valor pH",{"$nulls":6},"Contenido materia orgánica",{"$nulls":6},"%"]
[]
[null,"Observación/"]
[null,"Notas"]
[]
[]
[]
[]
[null,"4.4 Tipo de cultivo comercial"]
[]
[null,"Verduras",null,null,null,"Cereales",null,null,"   Cultivo árboles",{"$nulls":4},"Flores"]
[]
[null,"Otros",{"$nulls":7},"Otros"]
[]
[null,"Observación/"]
[null,"Notas"]
[]
[]
[]
[]
[null,"4.5 Rotación de cultivos"]
[]
[null,"Número de cultivos al año",{"$nulls":8},"Período barbecho",{"$nulls":4},"días"]
[{"$nulls":10},"(sin cultivos plantados)"]
[null,"Cultivo 1 (tipo y duración)",{"$nulls":12},"días por año"]
[]
[null,"Cultivo 2 (tipo y duración)",{"$nulls":12},"días por año"]
[]
[null,"Cultivo 3 (tipo y duración)",{"$nulls":12},"días por año"]
[]
[null,"Cultivo 4 (tipo y duración)",{"$nulls":12},"días por año"]
[]
[null,"Cultivo 5 (tipo y duración)",{"$nulls":12},"días por año"]
[]
[]
[null,"4.6 Demanda de agua de riego"]
[]
[null,"Demanda de agua [m³/d]",null,null,"E","F","M","A","M","J","J","A","S","O","N","D"]
[null,"Cultivo 1"]
[null,"Cultivo 2"]
[null,"Cultivo 3",null,"[°C]"]
[null,"Cultivo 4",null,"[°C]"]
[null,"Cultivo 5",null,"mm"]
[null,"Demanda total",null,"mm"]
[]
[]
[null,"4.7 Tipo de ganado"]
[]
[null,"Vacuno",null,null,null,"Caprino",null,null,null,"Ovino",null,null," Animales salvajes"]
[]
[null,"Otros",{"$nulls":7},"Otros"]
[]
[null,"Observación/"]
[null,"Notas"]
[]
[]
[]
[]
[null,"4.8 Cantidad de ganado"]
[]
[]
[null,"Ganado 1 (tipo y cantidad)",{"$nulls":12},"cabezas por año"]
[]
[null,"Ganado 2 (tipo y cantidad)",{"$nulls":12},"cabezas por año"]
[]
[null,"Ganado 3 (tipo y cantidad)",{"$nulls":12},"cabezas por año"]
[]
[null,"Ganado 4 (tipo y cantidad)",{"$nulls":12},"cabezas por año"]
[]
[null,"Ganado 5 (tipo y cantidad)",{"$nulls":12},"cabezas por año"]
[]
[]
[null,"4.9 Demanda de agua para ganado"]
[]
[null,"Demanda de agua [m³/d]",null,null,"E","F","M","A","M","J","J","A","S","O","N","D"]
[null,"Ganado 1"]
[null,"Ganado 2"]
[null,"Ganado 3"]
[null,"Ganado 4"]
[null,"Ganado 5"]
[null,"Demanda total",null,"mm"]

{"sheet":"5 Tecnología bombeo agua","index":5,"n_rows":176,"n_cols":16,"rows_kept":176,"cut":false,"hidden":false,"merged":[[25,4,26,15],[27,4,28,15],[7,14,7,15],[23,4,23,5],[9,0,9,16],[11,1,11,15],[17,4,17,15],[19,4,19,15],[27,1,28,3],[7,10,7,12],[31,1,31,15],[51,4,52,15],[53,4,54,15],[39,5,39,15],[41,5,41,15],[43,5,43,6],[43,14,43,15],[81,4,82,15],[83,4,84,15],[64,5,64,15],[66,4,67,15],[68,4,69,15],[73,5,73,15],[60,5,60,15],[62,5,62,15],[45,14,45,15],[45,5,45,6],[47,5,47,6],[47,14,47,15],[49,5,49,15],[68,1,69,3],[88,5,88,15],[75,5,75,15],[77,5,77,6],[77,14,77,15],[79,5,79,6],[79,12,79,13],[79,14,79,15],[96,4,97,15],[98,4,99,15],[92,14,92,15],[94,7,94,8],[111,12,111,13],[112,12,112,13],[102,1,102,15],[90,5,90,15],[92,5,92,6],[94,5,94,6],[94,14,94,15],[109,2,109,8],[110,2,110,8],[104,9,104,11],[105,9,105,11],[106,9,106,11],[107,9,107,11],[108,9,108,11],[109,9,109,11],[110,9,110,11],[111,9,111,11],[112,9,112,11],[113,9,113,11],[115,9,115,11],[116,9,116,11],[117,9,117,11],[118,9,118,11],[115,2,115,8],[116,2,116,8],[117,2,117,8],[104,12,104,13],[111,2,111,8],[112,2,112,8],[113,2,113,8],[104,2,104,8],[105,2,105,8],[106,2,106,8],[107,2,107,8],[108,2,108,8],[113,12,113,13],[105,12,105,13],[106,12,106,13],[107,12,107,13],[108,12,108,13],[109,12,109,13],[110,12,110,13],[175,1,175,2],[175,4,175,10],[175,12,175,13],[146,1,146,2],[146,4,146,10],[146,12,146,13],[119,12,119,13],[120,12,120,13],[114,2,114,8],[114,9,114,11],[114,12,114,13],[119,9,119,11],[120,9,120,11],[118,2,118,8],[115,12,115,13],[116,12,116,13],[117,12,117,13],[118,12,118,13],[119,2,119,8],[120,2,120,8]]}
[]
[null,"DISEÑA – Herramienta de recogida de datos",{"$nulls":10},"Datos GPX",null,{"$f":"'[1]1 Información general'!O2","v":0},{"$f":"'[1]1 Información general'!P2","v":0}]
[]
[null,"País",null,{"$f":"'[1]1 Información general'!D4","v":0},{"$nulls":6},"Propietario/a",null,{"$f":"'[1]1 Información general'!M4","v":0}]
[]
[null,"Granja",null,{"$f":"'[1]1 Información general'!D6","v":0},{"$nulls":6},"Entrevistador/a",null,{"$f":"'[1]1 Información general'!M6","v":0}]
[]
[null,"Distrito",null,{"$f":"'[1]1 Información general'!D8","v":0},{"$nulls":5},"Región",{"$f":"'[1]1 Información general'!K8","v":0},null,null,"Fecha",{"$f":"'[1]1 Información general'!O8:P8","v":0}]
[]
["5 TECNOLOGÍA DE BOMBEO DE AGUA"]
[]
[null,"5.1 Bomba de agua convencional"]
[]
[null,"Tipo de bomba",null,null,"Bomba de superficie",{"$nulls":6},"Bomba sumergible"]
[]
[null,"Desplazamiento positivo",{"$nulls":5},"Centrífuga",{"$nulls":5},"Otras"]
[]
[null,"Fabricante"]
[]
[null,"Modelo"]
[]
[null,"Carga máx.",null,null,null,"m",null,"Velocidad flujo máx.",null,null,null,"m³/h"]
[]
[null,"Tiempo de funcion.",{"$nulls":4},"h/d"]
[]
[null,"Observación/"]
[null,"Notas"]
[null,"(p. ej. profundidad de instalación)"]
[]
[]
[]
[null,"5.2 Sistema de bombeo fotovoltaico"]
[]
[null,"Tipo de célula solar",null,null,"Polisilicona",{"$nulls":8},"Monosilicona"]
[]
[{"$nulls":4},"Película fina",{"$nulls":8},"Otros"]
[]
[null,"Generador solar"]
[]
[null,"Fabricante módulo"]
[]
[null,"Modelo"]
[]
[null,"Potencia nom. módulo",{"$nulls":5},"Wp",null,null,null,"Módulos en serie"]
[]
[null,"Potencia nom. generador",{"$nulls":5},"kWp",null,null,null,"Líneas en paralelo"]
[]
[null,"Ángulo inclinación",{"$nulls":5},"°",null,null,null,"Ángulo azimut"]
[]
[null,"Sombreados"]
[]
[null,"Observación/"]
[null,"Notas"]
[]
[]
[]
[null,"Sistema de montaje",null,null,"Sur/norte fijo",{"$nulls":8},"Seguimiento"]
[]
[{"$nulls":4},"Oeste/este fijo",{"$nulls":8},"Otros"]
[]
[null,"Fabricante"]
[]
[null,"Modelo"]
[]
[null,"Tipo de montaje"]
[]
[null,"Observación/"]
[null,"Notas"]
[null,"(p. ej. seguimiento de eje simple o doble)"]
[]
[]
[null,"Controlador/inversor"]
[]
[null,"Fabricante"]
[]
[null,"Modelo"]
[]
[null," Potencia nominal máx.",{"$nulls":5},"kW",null,null,"Número de controladores"]
[]
[null,"Voltaje de entrada máx.",{"$nulls":5},"V",null,null,"Potencia total",null,null,null,"kW CA"]
[]
[null,"Observación/"]
[null,"Notas"]
[]
[]
[]
[null,"Unidad de bomba"]
[]
[null,"Fabricante"]
[]
[null,"Modelo"]
[]
[null,"Carga máxima",{"$nulls":5},"m",null,"Velocidad flujo máx.",{"$nulls":4},"m3/d"]
[]
[null,"Flujo máx. por día",{"$nulls":5},"m3/d",null,"Volumen de bomba total",{"$nulls":4},"m3/a"]
[]
[null,"Observación/"]
[null,"Notas"]
[]
[]
[]
[]
[null,"5.3 Determinación de carga de bombeo"]
["Esta lista de verificación se complementa con una herram. de cálculo en:",{"$nulls":8},"DISEÑAR 03 – Herramienta de cálculo de la bomba"]
[null,"Hg","Carga geodésica de bombeo",{"$nulls":9},"m"]
[null,"Hs","Nivel estático del agua",{"$nulls":9},"m"]
[null,"D","Abatimento",{"$nulls":9},"m"]
[null,"Hd","Nivel dinámico del agua",{"$nulls":9},"m"]
[null,"Hp","Profundidad de aspiración de la bomba",{"$nulls":9},"m"]
[null,"Hw","Profundidad del pozo",{"$nulls":9},"m"]
[null,"He","Diferencia elevación pozo/tanque",{"$nulls":9},"m"]
[null,"Ht","Altura de entrada del tanque",{"$nulls":9},"m"]
[null,"dw","Diámetro de encofrado del pozo",{"$nulls":9},"mm"]
[null,"dr","Diámetro de tubería ascendente",{"$nulls":9},"mm/pulgadas"]
[null,"dp","Diámetro de tubería de transmisión",{"$nulls":9},"mm/pulgadas"]
[null,"lp","Longitud de tubería de transmisión",{"$nulls":9},"m"]
[null,"V","Volumen del tanque de agua",{"$nulls":9},"m3"]
[null,"Hl","Pérdida de carga en tubería",{"$nulls":9},"m"]
[null,"Hm","Pérdida de carga en medidor de agua",{"$nulls":9},"m"]
[null,"Hf","Pérdida de carga en filtro/fertirrigación",{"$nulls":9},"m"]
[null,"Hirrig","Presión del sistema de riego",{"$nulls":9},"m"]
[]
[]
[null,"Sistema de alimentación directa"]
{"$rows_empty":22}
[null,"Htotal",null,"=","Hs + D + He + Hm + Hf + Hl + Hirrig",{"$nulls":6},"=",null,null,"m"]
{"$rows_empty":7}
[null,"Sistema de tanque"]
{"$rows_empty":20}
[null,"Htotal",null,"=","Hs + D + He + Ht + Hm + Hf + Hl",{"$nulls":6},"=",null,null,"m"]

{"sheet":"6 Tecnología de riego","index":6,"n_rows":117,"n_cols":16,"rows_kept":117,"cut":false,"hidden":false,"merged":[[63,4,63,15],[65,4,65,15],[71,4,71,15],[7,14,7,15],[13,6,13,7],[13,13,13,14],[15,13,15,14],[50,13,50,14],[52,5,52,6],[9,0,9,16],[11,1,11,15],[19,4,20,15],[17,13,17,14],[69,5,69,6],[21,4,22,15],[25,1,25,15],[28,5,28,15],[30,5,30,6],[30,13,30,14],[32,4,33,15],[52,13,52,14],[34,4,35,15],[44,5,44,15],[46,5,46,15],[38,1,38,15],[50,5,50,6],[115,4,116,15],[87,5,87,15],[79,1,79,15],[73,4,74,15],[75,4,76,15],[54,4,55,15],[56,1,57,3],[117,4,118,15],[89,5,89,15],[95,5,95,6],[95,13,95,14],[97,5,97,15],[99,4,100,15],[101,4,102,15],[91,5,91,15],[113,5,113,15],[111,5,111,15],[105,1,105,15],[56,4,57,15],[59,1,59,15],[69,13,69,14]]}
[]
[null,"DISEÑA – Herramienta de recogida de datos",{"$nulls":10},"Datos GPX",null,{"$f":"'[1]1 Información general'!O2","v":0},{"$f":"'[1]1 Información general'!P2","v":0}]
[]
[null,"País",null,{"$f":"'[1]1 Información general'!D4","v":0},{"$nulls":6},"Propietario/a",null,{"$f":"'[1]1 Información general'!M4","v":0}]
[]
[null,"Granja",null,{"$f":"'[1]1 Información general'!D6","v":0},{"$nulls":6},"Entrevistador/a",null,{"$f":"'[1]1 Información general'!M6","v":0}]
[]
[null,"Distrito",null,{"$f":"'[1]1 Información general'!D8","v":0},{"$nulls":4},"Región",null,{"$f":"'[1]1 Información general'!K8","v":0},null,null,"Fecha",{"$f":"'[1]1 Información general'!O8:P8","v":0}]
[]
["6 TECNOLOGÍA DE RIEGO"]
[]
[null,"6.1 Área regada"]
[]
[null,"N.° de parcelas/subcampos",{"$nulls":6},"  Tamaño parcelas/subcampos",{"$nulls":6},"ha"]
[]
[{"$nulls":15},"ha"]
[]
[{"$nulls":15},"ha"]
[]
[null,"Observación/"]
[null,"Notas"]
[]
[]
[]
[]
[null,"6.2 Tubería de alimentación"]
[]
[]
[null,"Material"]
[]
[null,"Diámetro",{"$nulls":5},"mm",null,null,null,"Longitud",null,null,null,"m"]
[]
[null,"Observación/"]
[null,"Notas"]
[]
[]
[]
[]
[null,"6.3 Sistema de distribución del agua"]
[]
[null,"Sistema por gravedad",{"$nulls":9},"Sistema presurizado"]
[]
[null,"Goteo",null,null,"Miniaspersor",{"$nulls":4},"Pivote central",null,null,null,"Otros"]
[]
[null,"Fabricante"]
[]
[null,"Modelo"]
[]
[null,"Compens. de presión "]
[]
[null,"Presión nominal",{"$nulls":5},"m",null,"Presión operativa",{"$nulls":5},"m"]
[]
[null,"Flujo nominal",{"$nulls":5},"l/h",null,"Uniformidad distribución",{"$nulls":5},"%"]
[]
[null,"Observación/"]
[null,"Notas"]
[null,"(p ej. susceptibilidad a la obstrucción, pérdidas de agua)"]
[]
[]
[null,"6.4 Sistema de filtrado"]
[]
[null,"Aletas",null,null,"Granulado",{"$nulls":4},"Arena",null,null,null,"Otros"]
[]
[null,"Fabricante"]
[]
[null,"Modelo"]
[]
[null,"Retrolavado manual",{"$nulls":8},"Retrolavado automático"]
[]
[null,"Presión nominal",{"$nulls":5},"m",null,"Presión operativa",{"$nulls":5},"m"]
[]
[null,"Información adicional"]
[]
[null,"Observación/"]
[null,"Notas"]
[]
[]
[]
[]
[null,"6.5 Fertirrigación/quimigación"]
[]
[null,"Aplicación fertilizante/pesticida"]
[]
[null,"Manual",null,null,"  Tanque diferencial presurizado",{"$nulls":7},"Cisterna flexible"]
[]
[null,"Bomba dosificadora",{"$nulls":5},"Boquilla Venturi",{"$nulls":5},"Otros"]
[]
[null,"Fabricante"]
[]
[null,"Modelo"]
[]
[null,"Suministro potencia"]
[]
[null,"Consumo potencia",{"$nulls":4},"W"]
[]
[null,"Presión nominal",{"$nulls":5},"m",null,"Presión operativa",{"$nulls":5},"m"]
[]
[null,"Información adicional"]
[]
[null,"Observación/"]
[null,"Notas"]
[]
[]
[]
[]
[null,"6.6 Seguimiento"]
[]
[null,"Humedad suelo",{"$nulls":4},"Velocidades de flujo",{"$nulls":6},"Presión"]
[]
[null,"Temperatura",{"$nulls":5},"Lluvias",{"$nulls":5},"Otros"]
[]
[null,"Fabricante"]
[]
[null,"Modelo"]
[]
[null,"Observación/"]
[null,"Notas"]

{"sheet":"7 Requisitos gestión","index":7,"n_rows":296,"n_cols":16,"rows_kept":296,"cut":false,"hidden":false,"merged":[[103,1,103,15],[89,1,89,5],[91,3,92,15],[94,1,94,15],[100,3,101,15],[89,6,89,7],[84,3,85,15],[82,1,82,5],[87,1,87,15],[64,1,64,15],[70,3,71,15],[73,1,73,15],[77,3,78,15],[80,1,80,15],[82,6,82,7],[57,1,57,15],[20,3,21,15],[31,3,32,15],[54,3,55,15],[61,3,62,15],[34,1,34,15],[36,1,36,15],[42,1,42,15],[28,1,28,5],[28,6,28,8],[28,9,28,11],[28,12,28,13],[28,14,28,15],[29,1,29,5],[29,6,29,8],[29,9,29,11],[26,1,26,5],[26,6,26,8],[26,9,26,11],[26,12,26,13],[26,14,26,15],[29,12,29,13],[29,14,29,15],[27,1,27,5],[27,6,27,8],[27,9,27,11],[27,12,27,13],[27,14,27,15],[24,1,24,5],[24,6,24,8],[24,9,24,11],[24,12,24,13],[24,14,24,15],[25,1,25,5],[25,6,25,8],[25,9,25,11],[25,12,25,13],[25,14,25,15],[23,1,23,5],[23,6,23,8],[23,9,23,11],[23,12,23,13],[23,14,23,15],[17,1,17,5],[18,1,18,5],[17,6,17,8],[17,9,17,11],[17,12,17,13],[15,12,15,13],[16,6,16,8],[16,9,16,11],[16,12,16,13],[17,14,17,15],[18,6,18,8],[18,9,18,11],[18,12,18,13],[18,14,18,15],[105,1,105,5],[105,6,105,7],[105,9,105,13],[105,14,105,15],[108,1,108,15],[9,0,9,16],[11,1,11,15],[7,14,7,15],[13,14,13,15],[14,1,14,5],[15,1,15,5],[16,1,16,5],[14,14,14,15],[15,14,15,15],[16,14,16,15],[13,12,13,13],[13,6,13,8],[13,9,13,11],[13,1,13,5],[14,6,14,8],[14,9,14,11],[14,12,14,13],[15,6,15,8],[15,9,15,11],[132,3,133,15],[135,1,135,15],[141,3,142,15],[148,3,149,15],[112,3,113,15],[115,1,115,15],[117,1,117,15],[125,3,126,15],[128,1,129,15],[144,1,145,15],[151,1,152,15],[206,3,207,15],[209,1,209,15],[211,3,212,15],[214,1,214,15],[216,1,216,15],[188,1,188,15],[190,3,191,15],[193,1,193,15],[197,3,198,15],[200,1,200,15],[173,3,174,15],[176,1,176,15],[178,3,179,15],[181,1,181,15],[185,3,186,15],[155,3,156,15],[158,1,158,15],[164,3,165,15],[167,1,167,15],[239,1,239,15],[243,3,244,15],[246,1,246,15],[250,3,251,15],[253,1,253,15],[220,3,221,15],[223,1,223,15],[227,3,228,15],[230,1,230,15],[236,3,237,15],[288,3,289,15],[291,1,291,15],[295,3,296,15],[270,1,270,15],[276,3,277,15],[279,1,279,15],[281,3,282,15],[284,1,284,15],[255,3,256,15],[258,1,258,15],[260,3,261,15],[263,1,263,15],[267,3,268,15]]}
[]
[null,"DISEÑA – Herramienta de recogida de datos",{"$nulls":10},"Datos GPX",null,{"$f":"'[1]1 Información general'!O2","v":0},{"$f":"'[1]1 Información general'!P2","v":0}]
[]
[null,"País",null,{"$f":"'[1]1 Información general'!D4","v":0},{"$nulls":6},"Propietario/a",null,{"$f":"'[1]1 Información general'!M4","v":0}]
[]
[null,"Granja",null,{"$f":"'[1]1 Información general'!D6","v":0},{"$nulls":6},"Entrevistador/a",null,{"$f":"'[1]1 Información general'!M6","v":0}]
[]
[null,"Distrito",null,{"$f":"'[1]1 Información general'!D8","v":0},{"$nulls":4},"Región",null,{"$f":"'[1]1 Información general'!K8","v":0},null,null,"Fecha",{"$f":"'[1]1 Información general'!O8:P8","v":0}]
[]
["7 REQUISITOS DE GESTIÓN"]
[]
[null,"7.1 Actores en la gestión de la granja"]
[]
[null,"Actores internos",{"$nulls":4},"Útil",null,null,"No presente",null,null,"Falta",null,"No se conoce"]
[null,"Propietario/a granja"]
[null,"Responsable de instalaciones"]
[null,"Capataz"]
[null,"Trabajadores/as agrícolas"]
[null,"Otros"]
[]
[null,"Notas"]
[]
[]
[null,"Actores internos",{"$nulls":4},"Útil",null,null,"No presente",null,null,"Falta",null,"No se conoce"]
[null,"Autoridad del agua"]
[null,"Asociación"]
[null,"Asesores/as agrícolas"]
[null,"Proveedores agrícolas"]
[null,"Asesores/as financieros"]
[null,"Otros"]
[]
[null,"Notas"]
[]
[]
[null,"7.2 Gestión estratégica (horizonte: >5-20 años)"]
[]
[null,"¿Cómo llegó a sus oídos la existencia de SPIS/fuente de información?"]
[]
[null,null,"Servicios asesoramiento agrícola",{"$nulls":5},"Internet",{"$nulls":4},"Radio/televisión"]
[]
[null,null,"Proveedor agrícola",{"$nulls":5},"Vecino/a o amigo/a",{"$nulls":4},"Servicios asesoramiento financiero"]
[]
[null,"¿Cuál fue la razón para cambiar de suministro de energía convencional a fotovoltaico?"]
[]
[null,null,"Red de suministro débil o no existente",{"$nulls":6},"Recortes de los subsidios para combustible convencional"]
[]
[null,null,"Problemas con sum. de combustible",{"$nulls":6},"Menor fiabilidad técnica del sistema convencional"]
[]
[null,null,"Problemas con sum. de recambios",{"$nulls":6},"Menor costo de sistema solar"]
[]
[null,null,"Tecnología respetuosa con m. ambiente",{"$nulls":6},"Imagen (verde) positiva"]
[]
[null,null,"Protección del nivel y la calidad de aguas subterráneas"]
[]
[null,"Notas"]
[]
[]
[null,"¿Pudo adquirir localmente todos los componentes de SPIS?"]
[]
[null,null,"Sí",{"$nulls":5},"No"]
[]
[null,"Notas"]
[]
[]
[null,"¿Qué componentes ha tenido que importar?"]
[]
[null,null,"Paneles solares",{"$nulls":5},"Sistema de montaje",{"$nulls":4},"Bomba/controlador"]
[]
[null,null,"Sistema de fertirrigación",{"$nulls":5},"Sistema de riego"]
[]
[null,"Notas"]
[]
[]
[null,"¿Fue necesario cambiar la tecnología de riego al pasar del sistema de suministro de energía convencional al fotovoltaico?"]
[]
[null,null,"Sí",{"$nulls":5},"No"]
[]
[null,"Notas"]
[]
[]
[null,"¿Cuántos años de experiencia tiene con el bombeo de agua convencional?"]
[]
[null,"Número de años de experiencia: "]
[]
[null,"Notas"]
[]
[]
[null,"¿Cuántos años de experiencia tiene con el bombeo de agua fotovoltaico?"]
[]
[null,"Número de años de experiencia: "]
[]
[null,"Notas"]
[]
[]
[null,"¿Cómo se ha financiado el sistema?"]
[]
[null,null,"Recursos propios",{"$nulls":5},"Préstamo bancario estándar",{"$nulls":5},"Crédito agrícola"]
[]
[null,null,"Otros"]
[]
[null,"Notas"]
[]
[]
[null,"Si se ha utilizado financiación"]
[]
[null,"Tasa de interés (%)",{"$nulls":7},"Plazo de amortización (años)"]
[]
[]
[null,"¿Volvería a invertir en un SPIS?"]
[]
[null,null,"Sí",{"$nulls":5},"No"]
[]
[null,"Notas"]
[]
[]
[null,"7.3 Gestión táctica (horizonte: <1 año)"]
[]
[null,"¿Por qué razón ha elegido los cultivos mencionados en 4.4?"]
[]
[null,"Alta demanda mercado",{"$nulls":6},"Resistencia plagas"]
[]
[null,"Elevado precio mercado",{"$nulls":6},"Otros"]
[]
[null,"Baja demanda de agua",{"$nulls":6},"Otros"]
[]
[null,"Notas"]
[]
[]
[null,"¿Hay suficientes trabajadores agrícolas disponibles durante la temporada de siembra y de la cosecha?"]
[]
[null,null,"Sí",{"$nulls":5},"No"]
[]
[null,"Notas"]
[]
[]
[null,"¿Cómo calificaría los conocimientos técnicos de sus trabajadores agrícolas?"]
[]
[null,null,"Bajos",{"$nulls":5},"Medios",{"$nulls":4},"Altos"]
[]
[null,null,"Excelentes",{"$nulls":5},"Otros"]
[]
[null,"Notas"]
[]
[]
[null,"¿Alguna vez ha tenido problemas con el suministro de combustible y recambios para el sistema de bombeo convencional?"]
[]
[null,null,"Sí",{"$nulls":5},"No"]
[]
[null,"Notas"]
[]
[]
[null,"¿Alguna vez ha tenido problemas con el suministro de recambios para el sistema de bombeo fotovoltaico?"]
[]
[null,null,"Sí",{"$nulls":5},"No"]
[]
[null,"Notas"]
[]
[]
[null,"¿Cómo calificaría la fiabilidad técnica de un sistema de bombeo convencional?"]
[]
[null,null,"Baja",{"$nulls":5},"Media",{"$nulls":4},"Alta"]
[]
[null,null,"Excelente",{"$nulls":5},"Otra"]
[]
[null,"Notas"]
[]
[]
[null,"¿Cómo calificaría la fiabilidad técnica de un sistema de bombeo solar?"]
[]
[null,null,"Baja",{"$nulls":5},"Media",{"$nulls":4},"Alta"]
[]
[null,null,"Excelente",{"$nulls":5},"Otra"]
[]
[null,"Notas"]
[]
[]
[null,"Con respecto al SPIS, ¿en su opinión qué debe mejorarse técnicamente?"]
[]
[null,"Notas"]
[]
[]
[null,"¿Ha tenido alguna vez problemas de disponibilidad y suministro de agua?"]
[]
[null,null,"Sí",{"$nulls":5},"No"]
[]
[null,"Notas"]
[]
[]
[null,"En caso afirmativo, ¿cuáles fueron los motivos de la escasez de agua?"]
[]
[null,"Notas"]
[]
[]
[null,"¿Tiene acceso fácil al mercado para vender sus productos?"]
[]
[null,null,"Sí",{"$nulls":5},"No"]
[]
[null,"Notas"]
[]
[]
[null,"¿Cómo calificaría los esfuerzos logísticos para comercializar los productos?"]
[]
[null,null,"Bajos",{"$nulls":5},"Es difícil",{"$nulls":4},"Medios"]
[]
[null,null,"Otros"]
[]
[null,"Notas"]
[]
[]
[null,"¿Ha apreciado cualquier otro reto en la gestión táctica de la explotación?"]
[]
[null,"Notas"]
[]
[]
[null,"7.4 Gestión operativa (horizonte: 1 día)"]
[]
[null,"¿Quién opera su SPIS?"]
[]
[null,null,"Capataz",{"$nulls":5},"Trabajador/a agrícola",{"$nulls":4},"Otros"]
[]
[null,"Notas"]
[]
[]
[null,"¿Cómo se controla el SPIS?"]
[]
[null,null,"Funcionamiento automático",{"$nulls":5},"Manual",{"$nulls":4},"Semiautomático"]
[]
[null,"Notas"]
[]
[]
[null,"¿Cómo determina la demanda de agua diaria de las plantas?"]
[]
[null,null,"Cálculo ETo",{"$nulls":5},"Estimación",{"$nulls":4},"Experiencia"]
[]
[null,null,"Software",{"$nulls":5},"Otros"]
[]
[null,"Notas"]
[]
[]
[null,"Si cuenta con varios subcampos, ¿cuál es su técnica de riego?"]
[]
[null,null,"Control de volumen",{"$nulls":5},"Control de tiempo",{"$nulls":4},"Otros"]
[]
[null,"Notas"]
[]
[]
[null,"¿Sufre alguna pérdida de agua en el sistema?"]
[]
[null,null,"Sí",{"$nulls":5},"No"]
[]
[null,"Notas"]
[]
[]
[null,"En caso afirmativo, ¿qué hace para evitar las pérdidas de agua?"]
[]
[null,"Notas"]
[]
[]
[null,"¿Cuáles son los intervalos de limpieza de los filtros?"]
[]
[null,"Notas"]
[]
[]
[null,"¿Conoce las pérdidas de presión causadas por filtros obstruidos?"]
[]
[null,null,"Sí",{"$nulls":5},"No"]
[]
[null,"Notas"]
[]
[]
[null,"¿Cómo determina la demanda de fertilizante de las plantas?"]
[]
[null,null,"Cálculo",{"$nulls":5},"Estimación",{"$nulls":4},"Experiencia"]
[]
[null,null,"Software",{"$nulls":5},"Otros"]
[]
[null,"Notas"]
[]
[]
[null,"¿Cuáles son los intervalos de fertirrigación?"]
[]
[null,"Notas"]
[]
[]
[null,"¿Cómo calificaría las necesidades de mantenimiento diario de un sistema de bombeo convencional?"]
[]
[null,null,"Bajas",{"$nulls":5},"Medias",{"$nulls":4},"Altas "]
[]
[null,"Notas"]
[]
[]
[null,"¿Cómo calificaría las necesidades de mantenimiento diario de un sistema de bombeo fotovoltaico?"]
[]
[null,null,"Bajas",{"$nulls":5},"Medias",{"$nulls":4},"Altas "]
[]
[null,"Notas"]

{"sheet":"8 Evaluación financiera","index":8,"n_rows":264,"n_cols":16,"rows_kept":264,"cut":false,"hidden":false,"merged":[[3,12,3,15],[5,12,5,15],[7,10,7,12],[7,3,7,6],[5,3,5,6],[3,3,3,6],[9,0,9,16],[12,1,12,15],[7,14,7,15],[107,6,107,15],[14,14,14,15],[16,14,16,15],[14,6,14,7],[16,6,16,7],[18,6,18,7],[20,11,20,15],[22,6,22,15],[43,6,43,15],[40,6,40,15],[44,6,44,15],[47,6,47,15],[36,1,36,15],[39,6,39,15],[59,6,59,15],[60,6,60,15],[63,1,63,15],[65,6,65,15],[67,6,67,15],[48,6,48,15],[51,6,51,15],[109,6,109,15],[103,1,103,15],[111,6,111,15],[113,6,113,15],[115,6,115,15],[117,6,117,15],[119,6,119,15],[177,6,177,15],[121,6,121,15],[123,6,123,15],[135,6,135,15],[139,6,139,15],[141,6,141,15],[143,6,143,15],[145,6,145,15],[125,6,125,15],[127,6,127,15],[129,6,129,15],[131,6,131,15],[133,6,133,15],[157,6,157,15],[159,6,159,15],[161,6,161,15],[163,6,163,15],[52,6,52,15],[55,6,55,15],[56,6,56,15],[96,6,96,15],[98,6,98,15],[100,6,100,15],[85,6,85,15],[88,1,88,15],[90,6,90,15],[92,6,92,15],[94,6,94,15],[69,6,69,15],[71,6,71,15],[73,6,73,15],[75,6,75,15],[77,6,77,15],[79,6,79,15],[81,6,81,15],[83,6,83,15],[165,6,165,15],[147,6,147,15],[149,6,149,15],[151,6,151,15],[153,6,153,15],[155,6,155,15],[183,6,183,15],[185,6,185,15],[187,6,187,15],[179,6,179,15],[181,6,181,15],[225,6,225,15],[207,6,207,15],[209,6,209,15],[211,6,211,15],[213,6,213,15],[215,6,215,15],[193,6,193,15],[195,6,195,15],[197,6,197,15],[203,6,203,15],[205,6,205,15],[263,6,263,15],[251,6,251,15],[253,6,253,15],[255,6,255,15],[257,6,257,15],[259,6,259,15],[241,6,241,15],[243,6,243,15],[245,6,245,15],[247,6,247,15],[249,6,249,15],[39,1,40,5],[43,1,44,5],[47,1,48,5],[51,1,52,5],[55,1,56,5],[59,1,60,5],[261,6,261,15],[167,6,167,15],[199,6,199,15],[231,6,231,15],[227,6,227,15],[229,6,229,15],[235,6,235,15],[237,6,237,15],[239,6,239,15],[217,6,217,15],[219,6,219,15],[221,6,221,15],[223,6,223,15],[189,6,189,15],[191,6,191,15],[171,6,171,15],[173,6,173,15],[175,6,175,15]]}
[]
[null,"DISEÑA – Herramienta de recogida de datos",{"$nulls":10},"Datos GPX",null,{"$f":"'[1]1 Información general'!O2","v":0},{"$f":"'[1]1 Información general'!P2","v":0}]
[]
[null,"País",null,{"$f":"'[1]1 Información general'!D4","v":0},{"$nulls":6},"Propietario/a",null,{"$f":"'[1]1 Información general'!M4","v":0}]
[]
[null,"Granja",null,{"$f":"'[1]1 Información general'!D6","v":0},{"$nulls":6},"Entrevistador/a",null,{"$f":"'[1]1 Información general'!M6","v":0}]
[]
[null,"Distrito",null,{"$f":"'[1]1 Información general'!D8","v":0},{"$nulls":4},"Región",null,{"$f":"'[1]1 Información general'!K8","v":0},null,null,"Fecha",{"$f":"'[1]1 Información general'!O8:P8","v":0}]
[]
["8 EVALUACIONES FINANCIERAS"]
["Esta lista de verificación se complementa con una herram. de cálculo en:",{"$nulls":8},"INVERTIR – Herramienta de recuperación de la inversión"]
["Esta lista de verificación se complementa con una herram. de cálculo en:",{"$nulls":8},"INVERTIR – Herramienta de análisis de la explotación"]
[null,"8.1 Inversión y costos operativos"]
[]
[null,"Costos del equipo de bombeo",{"$nulls":7},"Año de adquisición/instalación"]
[]
[null,"Costos sistema de distribución",{"$nulls":7},"Año de adquisición/instalación"]
[]
[null,"Costos mantenimiento anual"]
[]
[null,"Proveedor de servicios ext. op. y mant.",{"$nulls":7},"Empresa"]
[]
[null,"Categorías de costos operativos"]
[]
[null,null,"Tipo",{"$nulls":5},"Costo",null,null,null,"Frecuencia"]
[{"$nulls":12}," (¿Al mes? ¿Al año?)"]
{"$rows_empty":10}
[null,"8.2 Estrategia financiera"]
[]
[null,"Préstamo p. equip. de bomba",{"$nulls":4},"Sí",null,null,"No"]
[null,"(importe, interés, duración, etc.)"]
[]
[]
[null,"Préstamo p. sist. distribución",{"$nulls":4},"Sí",null,null,"No"]
[null,"(importe, interés, duración, etc.)"]
[]
[]
[null,"Préstamo p. sist. almac./filtrado",{"$nulls":4},"Sí",null,null,"No"]
[null,"(importe, interés, duración, etc.)"]
[]
[]
[null,"Préstamo para op. y mant.",{"$nulls":4},"Sí",null,null,"No"]
[null,"(importe, interés, duración, etc.)"]
[]
[]
[null,"Depreciación  costos de capital",{"$nulls":4},"Sí",null,null,"No"]
[null,"(importe, interés, duración, etc.)"]
[]
[]
[null,"Subsidios",{"$nulls":4},"Sí",null,null,"No"]
[null,"(importe, duración, etc.)"]
[]
[]
[]
[null,"8.3 Necesidades de mano de obra"]
[]
[null,"Neces. mano obra granja"]
[]
[null,"Cultivo 1 (jornada, EUR/jornada)"]
[]
[null,"Cultivo 2 (jornada, EUR/jornada)"]
[]
[null,"Cultivo 3 (jornada, EUR/jornada)"]
[]
[null,"Cultivo 4 (jornada, EUR/jornada)"]
[]
[null,"Cultivo 5 (jornada, EUR/jornada)"]
[]
[null,"Riego (jornada, EUR /jornada)"]
[]
[null,"Otros (jornada, EUR/jornada)"]
{"$rows_empty":8}
[null,"8.4 Tasas, contribuciones, cánones"]
[]
[null,"Tarifa agua (EUR/m3)"]
[]
[null,"Tarifa electricidad (EUR/kWh)"]
[]
[null,"Precio gasóleo (EUR/l)"]
[]
[null,"Otras contrib. y cánones (EUR)"]
[]
[]
[]
[]
[]
[]
[null,"8.5 Producción e ingresos agrícolas"]
[]
[null,"Cultivo 1"]
[]
[null,"Tipo de cultivo/área (ha)"]
[]
[null,"Producción (kg)"]
[]
[null,"Ventas (kg)"]
[]
[null,"Preparación tierras (EUR)"]
[]
[null,"Insumos semillas/fertiliz. (EUR)"]
[]
[null,"Insumos protec. plantas (EUR)"]
[]
[null,"Cosecha (EUR)"]
[]
[null,"Transporte/almac. (EUR)"]
[]
[null,"Cantidad sistema de riego"]
[]
[null,"Horas de bombeo"]
[]
[null,"Otros costos (jornada, EUR/jorn.)"]
{"$rows_empty":7}
[null,"Precio mercado prod. (EUR/kg)"]
[]
[null,"Cultivo 2"]
[]
[null,"Tipo de cultivo/área (ha)"]
[]
[null,"Producción (kg)"]
[]
[null,"Ventas (kg)"]
[]
[null,"Preparación tierras (EUR)"]
[]
[null,"Insumos semillas/fertiliz. (EUR)"]
[]
[null,"Insumos protec. plantas (EUR)"]
[]
[null,"Cosecha (EUR)"]
[]
[null,"Transporte/almac. (EUR)"]
[]
[null,"Cantidad sistema de riego"]
[]
[null,"Horas de bombeo"]
[]
[null,"Otros costos (jornada, EUR/jorn.)"]
{"$rows_empty":7}
[null,"Precio mercado prod. (EUR/kg)"]
[]
[null,"Cultivo 3"]
[]
[null,"Tipo de cultivo/área (ha)"]
[]
[null,"Producción (kg)"]
[]
[null,"Ventas (kg)"]
[]
[null,"Preparación tierras (EUR)"]
[]
[null,"Insumos semillas/fertiliz. (EUR)"]
[]
[null,"Insumos protec. plantas (EUR)"]
[]
[null,"Cosecha (EUR)"]
[]
[null,"Transporte/almac. (EUR)"]
[]
[null,"Cantidad sistema de riego"]
[]
[null,"Horas de bombeo"]
[]
[null,"Otros costos (jornada, EUR/jorn.)"]
{"$rows_empty":7}
[null,"Precio mercado prod. (EUR/kg)"]
[]
[null,"Cultivo 4"]
[]
[null,"Tipo de cultivo/área (ha)"]
[]
[null,"Producción (kg)"]
[]
[null,"Ventas (kg)"]
[]
[null,"Preparación tierras (EUR)"]
[]
[null,"Insumos semillas/fertiliz. (EUR)"]
[]
[null,"Insumos protec. plantas (EUR)"]
[]
[null,"Cosecha (EUR)"]
[]
[null,"Transporte/almac. (EUR)"]
[]
[null,"Cantidad sistema de riego"]
[]
[null,"Horas de bombeo"]
[]
[null,"Otros costos (jornada, EUR/jorn.)"]
{"$rows_empty":7}
[null,"Precio mercado prod. (EUR/kg)"]
[]
[null,"Cultivo 5"]
[]
[null,"Tipo de cultivo/área (ha)"]
[]
[null,"Producción (kg)"]
[]
[null,"Ventas (kg)"]
[]
[null,"Preparación tierras (EUR)"]
[]
[null,"Insumos semillas/fertiliz. (EUR)"]
[]
[null,"Insumos protec. plantas (EUR)"]
[]
[null,"Cosecha (EUR)"]
[]
[null,"Transporte/almac. (EUR)"]
[]
[null,"Cantidad sistema de riego"]
[]
[null,"Horas de bombeo"]
[]
[null,"Otros costos (jornada, EUR/jorn.)"]
{"$rows_empty":7}
[null,"Precio mercado prod. (EUR/kg)"]

{"sheet":"9 Impactos ecológicos","index":9,"n_rows":98,"n_cols":16,"rows_kept":98,"cut":false,"hidden":false,"merged":[[9,0,9,16],[7,14,7,15],[11,1,11,15],[15,3,16,15],[19,1,19,15],[7,10,7,11],[21,3,22,15],[25,1,25,15],[31,3,32,15],[44,1,44,15],[50,3,51,15],[35,1,35,15],[41,3,42,15],[54,1,54,15],[56,1,56,5],[56,6,56,7],[56,9,56,13],[56,14,56,15],[97,1,99,3],[58,3,59,15],[62,1,62,15],[64,3,65,15],[68,1,68,15],[73,1,75,3],[76,1,76,15],[80,3,81,15],[84,1,84,15],[92,1,92,15],[89,1,91,3]]}
[]
[null,"DISEÑA – Herramienta de recogida de datos",{"$nulls":10},"Datos GPX",null,{"$f":"'[1]1 Información general'!O2","v":0},{"$f":"'[1]1 Información general'!P2","v":0}]
[]
[null,"País",null,{"$f":"'[1]1 Información general'!D4","v":0},{"$nulls":6},"Propietario/a",null,{"$f":"'[1]1 Información general'!M4","v":0}]
[]
[null,"Granja",null,{"$f":"'[1]1 Información general'!D6","v":0},{"$nulls":6},"Entrevistador/a",null,{"$f":"'[1]1 Información general'!M6","v":0}]
[]
[null,"Distrito",null,{"$f":"'[1]1 Información general'!D8","v":0},{"$nulls":4},"Región",null,{"$f":"'[1]1 Información general'!K8","v":0},null,null,"Fecha",{"$f":"'[1]1 Información general'!O8:P8","v":0}]
[]
["9 IMPACTOS ECOLÓGICOS"]
[]
[null,"¿Sufre de salinización del suelo?"]
[]
[null,null,"Sí",{"$nulls":6},"No"]
[]
[null,"Notas"]
[]
[]
[]
[null,"¿Qué medidas adopta para evitar la salinización del suelo?"]
[]
[null,"Notas"]
[]
[]
[]
[null,"¿Cómo ve la evolución de sus recursos de aguas subterráneas?"]
[]
[null,null,"Los recur. hídricos son muy fiables y estables",{"$nulls":7},"Los recur. hídricos quedan interrumpidos con frecuencia"]
[]
[null,null,"Los recur. hídricos fluctúan estacionalmente",{"$nulls":7},"La dispon. de agua depende de otras personas"]
[]
[null,"Notas"]
[]
[]
[]
[null,"¿Cómo ve la evolución de los recursos de aguas subterráneas en el área colindante?"]
[]
[null,null,"Ya hay muchas otras bombas en funcion.",{"$nulls":7},"No hay control en el desarrollo de sist. de bombeo"]
[]
[null,null,"Están previstos muchos s. de bombeo nuevos",{"$nulls":7},"Conflictos regulares con vecinos"]
[]
[null,"Notas"]
[]
[]
[null,"¿Observa alguna variación del nivel de aguas subterráneas?"]
[]
[null,null,"Sí, pero solo en mi propia fuente de agua",{"$nulls":6},"Sí, los niveles de agua en el área han disminuido "]
[{"$nulls":9},"a lo largo de los años"]
[null,null,"Sí, muchos árboles secándose en el área",{"$nulls":6},"No he notado impactos"]
[]
[null,"Notas"]
[]
[]
[]
[null,"¿Cuál es el abatimiento máximo del nivel de agua durante el bombeo?"]
[]
[null,"Abatimiento (m)"]
[]
[null,"Notas"]
[]
[]
[]
[null,"¿Qué medidas toma para evitar el bombeo excesivo de acuíferos?"]
[]
[null,"Notas"]
[]
[]
[]
[null,"¿Observa alguna diferencia en la calidad del agua tras la instalación de SPIS?"]
[]
[null,null,"Sí",{"$nulls":6},"No"]
[]
[null,"Notas"]
[null,"p. ej. por evitar fugas de aceite y lubricantes"]
[]
[]
[null,"¿Observa alguna diferencia en la disponibilidad del agua tras la instalación de SPIS?"]
[]
[null,null,"Sí",{"$nulls":6},"No"]
[]
[null,"Notas"]
[]
[]
[]
[null,"¿Observa alguna diferencia en la calidad del suelo tras la instalación de SPIS?"]
[]
[null,null,"Sí",{"$nulls":6},"No"]
[]
[null,"Notas"]
[null,"p. ej. por evitar fugas de aceite y lubricantes"]
[]
[]
[null,"¿Hay algún otro beneficio medioambiental que le gustaría mencionar?"]
[]
[null,null,"Sí",{"$nulls":6},"No"]
[]
[null,"Notas"]
[null,"p. ej. por evitar fugas de aceite y lubricantes"]

{"sheet":"10 Capacitación y aceptación","index":10,"n_rows":91,"n_cols":16,"rows_kept":91,"cut":false,"hidden":false,"merged":[[5,12,5,15],[3,12,3,15],[3,3,3,6],[5,3,5,6],[7,3,7,6],[7,14,7,15],[81,3,83,15],[9,0,9,16],[11,1,11,15],[15,3,17,15],[20,1,20,15],[54,1,55,15],[7,10,7,12],[90,3,92,15],[24,3,26,15],[29,1,29,15],[33,3,35,15],[38,1,38,15],[40,3,42,15],[58,3,60,15],[63,1,63,15],[65,3,67,15],[45,1,45,15],[49,3,51,15],[70,1,70,15],[72,3,74,15],[77,1,77,15],[86,1,87,15]]}
[]
[null,"DISEÑA – Herramienta de recogida de datos",{"$nulls":10},"Datos GPX",null,{"$f":"'[1]1 Información general'!O2","v":0},{"$f":"'[1]1 Información general'!P2","v":0}]
[]
[null,"País",null,{"$f":"'[1]1 Información general'!D4","v":0},{"$nulls":6},"Propietario/a",null,{"$f":"'[1]1 Información general'!M4","v":0}]
[]
[null,"Granja",null,{"$f":"'[1]1 Información general'!D6","v":0},{"$nulls":6},"Entrevistador/a",null,{"$f":"'[1]1 Información general'!M6","v":0}]
[]
[null,"Distrito",null,{"$f":"'[1]1 Información general'!D8","v":0},{"$nulls":4},"Región",null,{"$f":"'[1]1 Información general'!K8","v":0},null,null,"Fecha",{"$f":"'[1]1 Información general'!O8:P8","v":0}]
[]
["10 CAPACITACIÓN Y ACEPTACIÓN"]
[]
[null,"¿Cuenta con algún manual operativo/de capacitación para sus empleados/as?"]
[]
[null,null,"Sí",{"$nulls":6},"No"]
[]
[null,"Notas"]
[]
[]
[]
[]
[null,"¿Recibe ayuda regular de servicios de asesoramiento agrícola? ¿De qué tipo?"]
[]
[null,null,"Sí",{"$nulls":6},"No"]
[]
[null,"Notas"]
[]
[]
[]
[]
[null,"¿Tiene una necesidad específica de capacitación?"]
[]
[null,null,"Sí",{"$nulls":6},"No"]
[]
[null,"Notas"]
[]
[]
[]
[]
[null,"¿Podría, por favor, especificar la necesidad de capacitación?"]
[]
[null,"Notas"]
[]
[]
[]
[]
[null,"¿Estaría dispuesto/a a pagar por una capacitación cualificada sobre SPIS?"]
[]
[null,null,"Sí",{"$nulls":6},"No"]
[]
[null,"Notas"]
[]
[]
[]
[]
[null,"¿Alguna vez ha vivido problemas de aceptación del SPIS por parte de responsables de granjas, responsables de instalaciones o trabajadores/as agrícolas?"]
[]
[null,null,"Sí",{"$nulls":6},"No"]
[]
[null,"Notas"]
[]
[]
[]
[]
[null,"En caso afirmativo, ¿qué tipo de problemas de aceptación ha vivido?"]
[]
[null,"Notas"]
[]
[]
[]
[]
[null,"¿Cómo ve el papel de las autoridades locales/regionales en su región/país?"]
[]
[null,"Notas"]
[]
[]
[]
[]
[null,"¿Suele contratar a mujeres en la granja?"]
[]
[null,null,"Sí",{"$nulls":6},"No"]
[]
[null,"Notas"]
[]
[]
[]
[]
[null,"¿Ha tenido el uso de SPIS alguna influencia en el número y el sexo de los trabajadores/as agrícolas y/u otros miembros del personal?"]
[]
[null,null,"Sí",{"$nulls":6},"No"]
[]
[null,"Notas"]